fUST/lending_fUST_20240522
["ID","MTS","AMOUNT","RATE_DAILY","PERIOD"]
[327690525,1716318701842,550.85396294,9.999e-05,2]
[327690527,1716318760008,155.0,9.999e-05,2]
[327690529,1716318786417,331.06432126,9.999e-05,2]
[327690571,1716319832622,-175.6616625,0.00018899,2]
[327690575,1716319832633,-214.79658601,0.000189,2]
[327690579,1716319832642,-6563.54175149,0.00020265,2]
[327690581,1716319832655,-714.91125,0.00020265,2]
[327690608,1716319840137,-746.2030099,0.00020265,2]
[327690611,1716319840149,-1089.18784211,0.00020265,2]
[327690613,1716319840159,-306.7834792,0.00020604,2]
[327690614,1716319840170,-7944.42271084,0.00020805,2]
[327690615,1716319840180,-214.79658601,0.000239,2]
[327690618,1716319840191,-450.164538,0.00024384,2]
[327690620,1716319840203,-161.838419,0.00027805,2]
[327690622,1716319840213,-214.79658601,0.000289,2]
[327690624,1716319840222,-200.37703986,0.0003021,2]
[327690626,1716319840232,-450.164538,0.0003031,2]
[327690627,1716319840241,-1000.0,0.000305,2]
[327690629,1716319840251,-1000.0,0.00031,2]
[327690631,1716319840261,-1000.0,0.000315,2]
[327690632,1716319840270,-1000.0,0.00032,2]
[327690633,1716319840280,-150.0,0.00032303,2]
[327690634,1716319840290,-1000.0,0.000325,2]
[327690635,1716319840299,-209.50007241,0.00032907,3]
[327690636,1716319840311,-1006.72430983,0.00033,2]
[327690637,1716319840321,-2000.0,0.00033224,2]
[327690638,1716319840331,-150.516,0.00033303,7]
[327690639,1716319840341,-685.86,0.00033314,3]
[327690640,1716319840351,-571.55,0.00033314,3]
[327690641,1716319840361,-476.29,0.00033314,3]
[327690642,1716319840372,-615.27068504,0.00033319,7]
[327690643,1716319840382,-500.0,0.00033319,7]
[327690644,1716319840391,-500.0,0.00033319,7]
[327690645,1716319840402,-500.0,0.00033319,7]
[327690646,1716319840412,-500.0,0.00033319,7]
[327690647,1716319840422,-315.0,0.00033319,7]
[327690648,1716319840432,-500.0,0.00033319,7]
[327690649,1716319840441,-500.0,0.00033319,7]
[327690650,1716319840451,-500.0,0.00033319,7]
[327690651,1716319840461,-500.0,0.00033319,7]
[327690652,1716319840471,-500.0,0.00033319,7]
[327690653,1716319840481,-500.0,0.00033319,7]
[327690654,1716319840493,-226.25797466,0.00033319,7]
[327690655,1716319840505,-500.0,0.00033319,7]
[327690656,1716319840516,-500.0,0.00033319,7]
[327690657,1716319840526,-500.0,0.00033319,7]
[327690658,1716319840536,-425.7,0.00033319,7]
[327690659,1716319840545,-500.0,0.00033319,7]
[327690660,1716319840557,-500.0,0.00033319,7]
[327690661,1716319840568,-500.0,0.00033319,7]
[327690662,1716319840578,-601.50017489,0.00033319,7]
[327690663,1716319840588,-500.0,0.00033319,7]
[327690664,1716319840598,-500.0,0.00033319,7]
[327690665,1716319840608,-500.0,0.00033319,7]
[327690666,1716319840618,-387.11611858,0.00033319,7]
[327690667,1716319840628,-500.0,0.00033319,7]
[327690668,1716319840640,-500.0,0.00033319,7]
[327690669,1716319840650,-500.0,0.00033319,7]
[327690670,1716319840660,-500.0,0.00033319,7]
[327690671,1716319840670,-500.0,0.00033319,7]
[327690672,1716319840680,-500.0,0.00033319,7]
[327690673,1716319840691,-500.0,0.00033319,7]
[327690674,1716319840701,-500.0,0.00033319,7]
[327690675,1716319840711,-500.0,0.00033319,7]
[327690676,1716319840722,-500.0,0.00033319,7]
[327690677,1716319840732,-500.0,0.00033319,7]
[327690678,1716319840742,-500.0,0.00033319,7]
[327690679,1716319840752,-500.0,0.00033319,7]
[327690680,1716319840763,-500.0,0.00033319,7]
[327690681,1716319840772,-500.0,0.00033319,7]
[327690682,1716319840782,-500.0,0.00033319,7]
[327690683,1716319840791,-500.0,0.00033319,7]
[327690684,1716319840801,-500.0,0.00033319,7]
[327690685,1716319840812,-18231.91250266,0.00033324,7]
[327690687,1716319840822,-34349.98640945,0.00033324,5]
[327690689,1716319840832,-191.0,0.000334,35]
[327690691,1716319840842,-150.5,0.0003341,35]
[327690693,1716319840851,-150.5,0.0003342,35]
[327690695,1716319840861,-1716.95,0.00033421,2]
[327690697,1716319840871,-1716.95,0.00033421,2]
[327690699,1716319840880,-1716.95,0.00033421,2]
[327690701,1716319840889,-1716.95,0.00033421,2]
[327690703,1716319840899,-3639.36,0.00033421,6]
[327690705,1716319840908,-3639.36,0.00033421,6]
[327690707,1716319840918,-3639.36,0.00033421,6]
[327690709,1716319840928,-3639.36,0.00033421,6]
[327690711,1716319840937,-295.03397887,0.00033422,4]
[327690713,1716319840948,-6229.35298755,0.00033422,4]
[327690715,1716319840961,-192.04570611,0.00033422,4]
[327690717,1716319840971,-236.09771727,0.00033422,4]
[327690719,1716319840980,-430.73110014,0.00033422,4]
[327690721,1716319840990,-497.57559866,0.00033422,2]
[327690723,1716319841001,-309.53572423,0.00033422,4]
[327690725,1716319841010,-309.64391027,0.00033422,4]
[327690727,1716319841020,-155.02480397,0.00033422,4]
[327690729,1716319841031,-155.0418613,0.00033422,4]
[327690731,1716319841042,-1907.6585678,0.00033422,4]
[327690733,1716319841052,-158.44290678,0.00033422,4]
[327690735,1716319841062,-309.32054695,0.00033422,7]
[327690737,1716319841071,-194.64774937,0.00033422,4]
[327690739,1716319841080,-156.53311596,0.00033422,4]
[327690741,1716319841090,-156.09000191,0.00033422,4]
[327690743,1716319841099,-1804.51621318,0.00033422,4]
[327690745,1716319841109,-309.62731609,0.00033422,4]
[327690747,1716319841118,-265.00807155,0.00033422,4]
[327690749,1716319841128,-309.79882487,0.00033422,4]
[327690751,1716319841137,-260.95768697,0.00033422,4]
[327690753,1716319841147,-1050.74198596,0.00033422,4]
[327690755,1716319841156,-835.13669849,0.00033422,4]
[327690757,1716319841166,-194.346415,0.00033422,4]
[327690759,1716319841175,-412.15688358,0.00033422,4]
[327690761,1716319841185,-895.86631448,0.00033422,4]
[327690763,1716319841194,-309.65937778,0.00033422,4]
[327690765,1716319841204,-309.69032205,0.00033422,4]
[327690767,1716319841213,-1495.85240502,0.00033422,4]
[327690769,1716319841223,-309.79736396,0.00033422,4]
[327690771,1716319841233,-156.42621408,0.00033422,4]
[327690773,1716319841243,-309.79863785,0.00033422,4]
[327690775,1716319841252,-1528.29476389,0.00033422,14]
[327690777,1716319841262,-527.79545336,0.00033422,4]
[327690779,1716319841272,-289.01458874,0.00033422,4]
[327690781,1716319841282,-1684.33877323,0.00033422,4]
[327690783,1716319841292,-155.08099165,0.00033422,4]
[327690785,1716319841304,-1672.75011485,0.00033422,4]
[327690787,1716319841313,-683.79075488,0.00033422,4]
[327690789,1716319841323,-672.0177029,0.00033422,4]
[327690791,1716319841332,-511.11801261,0.00033422,4]
[327690794,1716319841342,-5553.9884539,0.00033422,4]
[327690796,1716319841352,-474.82276577,0.00033422,4]
[327690798,1716319841362,-197.47401387,0.00033422,4]
[327690800,1716319841371,-2790.30988309,0.00033422,120]
[327690802,1716319841381,-294.25834912,0.00033422,4]
[327690804,1716319841391,-309.64391027,0.00033422,4]
[327690806,1716319841402,-770.39170798,0.00033422,4]
[327690808,1716319841412,-310.57920608,0.00033422,4]
[327690810,1716319841422,-309.36064824,0.00033422,4]
[327690812,1716319841432,-228.26507174,0.00033422,4]
[327690814,1716319841443,-312.71059804,0.00033422,4]
[327690816,1716319841452,-319.06966249,0.00033422,4]
[327690818,1716319841462,-374.1342755,0.00033422,4]
[327690820,1716319841471,-261.18489888,0.00033422,4]
[327690822,1716319841481,-303.28947032,0.00033422,4]
[327690824,1716319841490,-1028.36948709,0.00033422,4]
[327690826,1716319841500,-334.50951184,0.00033422,4]
[327690828,1716319841510,-7420.7501235,0.00033422,4]
[327690830,1716319841520,-1106.37126726,0.00033422,4]
[327690832,1716319841530,-286.21032716,0.00033422,2]
[327690834,1716319841539,-157.40083004,0.00033422,4]
[327690836,1716319841550,-399.68403113,0.00033422,4]
[327690838,1716319841561,-425.74012831,0.00033422,4]
[327690840,1716319841572,-14708.33673323,0.00033422,4]
[327690843,1716319841582,-236.35488706,0.00033422,4]
[327690844,1716319841592,-155.02628739,0.00033422,4]
[327690857,1716319841702,-1402.22943905,0.00033422,4]
[327690859,1716319841713,-2591.61103843,0.00033422,4]
[327690861,1716319841723,-1087.84140931,0.00033422,4]
[327690863,1716319841732,-238.21808258,0.00033422,4]
[327690865,1716319841741,-176.32843795,0.00033422,4]
[327690867,1716319841750,-701.34414622,0.00033422,4]
[327690869,1716319841759,-209.54484359,0.00033422,4]
[327690871,1716319841769,-1042.17681603,0.00033422,4]
[327690873,1716319841779,-815.77696865,0.00033422,2]
[327690875,1716319841788,-504.27488631,0.00033422,4]
[327690877,1716319841797,-155.15118705,0.00033422,4]
[327690879,1716319841808,-355.79330497,0.00033422,4]
[327690881,1716319841818,-1723.4479073,0.00033422,4]
[327690883,1716319841828,-753.49792756,0.00033422,4]
[327690885,1716319841838,-205.54799802,0.00033422,4]
[327690888,1716319841851,-1624.99525121,0.00033422,4]
[327690890,1716319841860,-155.26127218,0.00033422,4]
[327690891,1716319841870,-156.89425945,0.00033422,4]
[327690893,1716319841880,-269.42881834,0.00033422,4]
[327690896,1716319841890,-2384.97809211,0.00033422,4]
[327690898,1716319841899,-13764.45429025,0.00033422,4]
[327690900,1716319841909,-492.66939599,0.00033422,4]
[327690901,1716319841918,-315.40158836,0.00033422,4]
[327690904,1716319841928,-3164.3470964,0.00033422,4]
[327690905,1716319841938,-3451.43241119,0.00033422,4]
[327690908,1716319841949,-3071.99738916,0.00033422,4]
[327690910,1716319841962,-638.20183714,0.00033422,4]
[327690911,1716319841972,-243.83515104,0.00033422,4]
[327690913,1716319841982,-330.03514546,0.00033422,4]
[327690915,1716319841993,-1544.41828798,0.00033422,4]
[327690917,1716319842003,-3639.36,0.00033423,6]
[327690919,1716319842013,-3639.36,0.00033423,6]
[327690921,1716319842024,-3639.36,0.00033423,6]
[327690923,1716319842034,-3639.36,0.00033423,6]
[327690925,1716319842047,-28403.43269994,0.00033424,7]
[327690927,1716319842062,-500.77482875,0.00033424,2]
[327690929,1716319842073,-1470.96,0.00033424,6]
[327690931,1716319842084,-500.0,0.00033424,6]
[327690933,1716319842095,-500.0,0.00033424,6]
[327690935,1716319842105,-500.0,0.00033424,6]
[327690937,1716319842114,-500.0,0.00033424,6]
[327690939,1716319842125,-500.0,0.00033424,6]
[327690941,1716319842136,-505.18043598,0.00033424,6]
[327690943,1716319842147,-358.50822189,0.00033424,6]
[327690946,1716319842158,-500.0,0.00033424,6]
[327690948,1716319842168,-500.0,0.00033424,6]
[327690950,1716319842178,-89.01845419,0.00033424,6]
[327690959,1716319842264,-526.848256,0.00033423,6]
[327690966,1716319842328,-3112.511744,0.00033423,6]
[327690968,1716319842338,-3639.36,0.00033423,6]
[327690970,1716319842348,-197.628256,0.00033423,6]
[327690972,1716319842360,-3441.731744,0.00033423,6]
[327690974,1716319842370,-3081.92952537,0.00033423,6]
[327691143,1716319844313,-557.43047463,0.00033423,6]
[327691144,1716319844323,-91.75803257,0.00033423,6]
[327692220,1716321032720,-175.6616625,0.00020913,2]
[327692222,1716321032730,-161.838419,0.00024062,2]
[327692224,1716321032739,-2083.3916709,0.00024109,2]
[327692226,1716321032748,-1004.2042,0.00024118,2]
[327692228,1716321032758,-405.148084,0.00024384,2]
[327692230,1716321032767,-3091.7559636,0.00024986,2]
[327692323,1716321038235,-5196.4470463,0.00024986,2]
[327692325,1716321038245,-1090.29384871,0.00025,3]
[327692327,1716321038255,-819.0,0.0002772,120]
[327692329,1716321038267,-405.148084,0.0003031,2]
[327692332,1716321038279,-557.45896271,0.00031751,4]
[327692334,1716321038289,-500.0,0.00032424,120]
[327692336,1716321038299,-585.95,0.00032424,120]
[327692338,1716321038309,-500.0,0.00032424,120]
[327692340,1716321038319,-500.0,0.00032424,120]
[327692342,1716321038328,-500.0,0.00032424,120]
[327692344,1716321038338,-500.0,0.00032424,120]
[327692346,1716321038353,-500.0,0.00032424,120]
[327692348,1716321038362,-500.0,0.00032424,120]
[327692350,1716321038371,-500.0,0.00032424,120]
[327692351,1716321038381,-380.65,0.00032424,120]
[327692353,1716321038391,-167.60005793,0.00033089,3]
[327692354,1716321038401,-417.32360569,0.00033221,2]
[327692355,1716321038411,-4019.40106954,0.00033265,2]
[327692356,1716321038426,-204.67428681,0.00033265,2]
[327692357,1716321038435,-487.92571319,0.00033323,2]
[327692358,1716321038447,-1512.07428681,0.00033323,2]
[327692359,1716321038455,-3341.86571319,0.00033324,5]
[327692360,1716321038467,-1029.5663358,0.00033324,5]
[327692371,1716321040282,-312.2633,0.00027202,2]
[327692375,1716321040323,-2457.93055425,0.00027202,2]
[327692415,1716321043274,-8593.77505357,0.00027202,2]
[327692416,1716321043300,-5246.84587368,0.00027202,2]
[327692417,1716321043309,-2295.15412632,0.00033324,5]
[327692418,1716321043321,-7610.86623481,0.00033324,5]
[327692419,1716321043334,-5501.8018014,0.00033324,5]
[327692420,1716321043353,-229.69,0.00033413,3]
[327692421,1716321043368,-990.89759992,0.00033422,4]
[327692422,1716321043378,-241.77765027,0.00033422,4]
[327692423,1716321043387,-174.65826339,0.00033422,4]
[327692424,1716321043398,-1770.84856786,0.00033422,4]
[327692426,1716321043407,-289.74371757,0.00033422,4]
[327692428,1716321043544,-155.04341216,0.00033422,4]
[327692429,1716321043554,-304.6642375,0.00033422,4]
[327692430,1716321043565,-1000.28501999,0.00033422,4]
[327692431,1716321043574,-717.07148073,0.00033422,4]
[327692432,1716321043583,-263.68743644,0.00033422,7]
[327692433,1716321043593,-500.0,0.00033422,7]
[327692434,1716321043603,-634.43522412,0.00033422,7]
[327692435,1716321043612,-500.0,0.00033422,7]
[327692436,1716321043621,-577.71,0.00033422,7]
[327692437,1716321043631,-500.0,0.00033422,7]
[327692438,1716321043640,-500.0,0.00033422,7]
[327692439,1716321043649,-500.0,0.00033422,7]
[327692440,1716321043659,-367.87739239,0.00033422,7]
[327692441,1716321043668,-500.0,0.00033422,7]
[327692442,1716321043678,-500.0,0.00033422,7]
[327692443,1716321043687,-500.0,0.00033422,7]
[327692444,1716321043696,-500.0,0.00033422,7]
[327692445,1716321043705,-380.45005247,0.00033422,7]
[327692446,1716321043715,-216.13483558,0.00033422,7]
[327692447,1716321043724,-271.90081033,0.00033422,7]
[327692448,1716321043733,-23642.68435663,0.00033423,7]
[327692449,1716321043742,-2100.26503447,0.00033423,4]
[327692450,1716321043751,-1847.24793615,0.00033423,4]
[327692451,1716321043761,-17760.05287553,0.00033423,30]
[327692452,1716321043772,-2092.43,0.00033423,6]
[327692453,1716321043781,-2092.43,0.00033423,6]
[327692454,1716321043791,-2092.43,0.00033423,6]
[327692455,1716321043800,-2092.43,0.00033423,6]
[327692456,1716321043810,-2092.43,0.00033423,6]
[327692457,1716321043820,-2092.43,0.00033423,6]
[327692458,1716321043830,-2092.43,0.00033423,6]
[327692459,1716321043839,-2092.43,0.00033423,6]
[327692460,1716321043849,-2092.43,0.00033423,6]
[327692461,1716321043858,-2092.43,0.00033423,6]
[327692462,1716321043868,-2092.43,0.00033423,6]
[327692463,1716321043877,-467.61013604,0.00033423,6]
[327692472,1716321046329,-500.0,0.00033422,7]
[327692473,1716321046339,-500.0,0.00033422,7]
[327692474,1716321046351,-500.0,0.00033422,7]
[327692475,1716321046361,-500.0,0.00033422,7]
[327692476,1716321046370,-312.95714125,0.00033422,7]
[327692477,1716321046379,-451.49284339,0.00033422,7]
[327692478,1716321046389,-462.26417052,0.00033422,7]
[327692479,1716321046399,-447.24784484,0.00033422,7]
[327692710,1716322238328,-175.6616625,0.00020913,2]
[327692712,1716322238339,-364.633275,0.00024384,2]
[327692715,1716322238348,-2074.68916641,0.00024615,2]
[327692720,1716322238388,-499.77566816,0.00024615,2]
[327692885,1716322240501,-357.79666212,0.00024615,2]
[327692886,1716322240513,-333.49093009,0.00024615,2]
[327692887,1716322240524,-916.50906991,0.00024615,2]
[327692960,1716322246322,-345.00673985,0.0002449,2]
[327692961,1716322246382,-26600.01367015,0.0002449,2]
[327692962,1716322246392,-2596.90862691,0.00024615,2]
[327692963,1716322246402,-364.633275,0.0003031,2]
[327692964,1716322246411,-417.32360569,0.00032902,2]
[327692965,1716322246421,-4224.07535635,0.00033103,2]
[327692966,1716322246430,-879.10273394,0.00033322,2]
[327692967,1716322246440,-1073.52938556,0.00033324,2]
[327692968,1716322301167,155.00310006,9.999e-05,2]
[327692978,1716322610662,155.0,9.999e-05,2]
[327692980,1716322790195,155.00155002,9.999e-05,2]
[327693070,1716323432689,-155.0,0.00018893,2]
[327693071,1716323432699,-859.18634406,0.000189,2]
[327693073,1716323432709,-161.838419,0.00021177,2]
[327693075,1716323432718,-166.666666,0.00021918,2]
[327693077,1716323432728,-166.666666,0.00022431,2]
[327693079,1716323432737,-413.66369623,0.00022739,2]
[327693081,1716323432746,-166.666666,0.00022944,2]
[327693083,1716323432756,-150.0,0.00023167,3]
[327693085,1716323432765,-150.0,0.00023167,3]
[327693087,1716323432775,-977.18915451,0.00023414,2]
[327693089,1716323432784,-166.666666,0.00023456,2]
[327693091,1716323432794,-859.18634406,0.000239,2]
[327693093,1716323432804,-166.666666,0.00023969,2]
[327693095,1716323432817,-150.0,0.00024215,3]
[327693097,1716323432826,-150.0,0.00024215,3]
[327693099,1716323432836,-353.056948,0.00024384,2]
[327693101,1716323432845,-166.666666,0.00024482,2]
[327693103,1716323432854,-637.85945773,0.00024585,2]
[327693105,1716323432864,-150.0,0.00025262,5]
[327693106,1716323432873,-150.0,0.0002631,5]
[327693108,1716323432883,-353.056948,0.0003031,2]
[327693109,1716323432893,-480.25693471,0.00031,2]
[327693110,1716323432903,-496.0,0.0003279,2]
[327693111,1716323432912,-150.0,0.0003279,2]
[327693112,1716323432921,-417.32360569,0.00033009,2]
[327693113,1716323432931,-4224.07535635,0.00033076,2]
[327693114,1716323432940,-200.37703992,0.000333,2]
[327693115,1716323432950,-173.39783781,0.00033321,2]
[327693116,1716323432960,-757.26804943,0.00033322,2]
[327693117,1716323432969,-173.39783779,0.00033322,2]
[327693118,1716323432979,-173.39783779,0.00033323,2]
[327693119,1716323432989,-303.83943845,0.00033324,4]
[327693120,1716323432999,-173.39783779,0.00033324,2]
[327693121,1716323433009,-22341.85229592,0.00033324,5]
[327693122,1716323433018,-159.62,0.000334,9]
[327693123,1716323433028,-666.33,0.00033411,3]
[327693124,1716323433037,-358.63,0.00033412,3]
[327693125,1716323433047,-294.16798662,0.00033419,2]
[327693126,1716323433056,-12181.93335694,0.00033419,7]
[327693173,1716323438665,-175.6616625,0.00018892,2]
[327693175,1716323438674,-86.0793375,0.00033419,7]
[327693178,1716323438686,-2627.13482227,0.00033419,7]
[327693179,1716323438696,-500.0,0.00033421,7]
[327693182,1716323438706,-500.0,0.00033421,7]
[327693184,1716323438716,-500.0,0.00033421,7]
[327693186,1716323438726,-500.0,0.00033421,7]
[327693188,1716323438736,-523.313,0.00033421,7]
[327693190,1716323438745,-500.0,0.00033421,7]
[327693192,1716323438755,-265.27621831,0.00033421,7]
[327693194,1716323438764,-500.0,0.00033421,7]
[327693196,1716323438774,-164.84045067,0.00033421,7]
[327693198,1716323438784,-500.0,0.00033421,7]
[327693200,1716323438794,-500.0,0.00033421,7]
[327693202,1716323438804,-500.0,0.00033421,7]
[327693204,1716323438815,-500.0,0.00033421,7]
[327693206,1716323438826,-202.11745529,0.00033421,7]
[327693208,1716323438835,-500.0,0.00033421,7]
[327693210,1716323438845,-500.0,0.00033421,7]
[327693212,1716323438854,-500.0,0.00033421,7]
[327693214,1716323438863,-500.0,0.00033421,7]
[327693216,1716323438873,-500.0,0.00033421,7]
[327693218,1716323438883,-500.0,0.00033421,7]
[327693220,1716323438892,-500.0,0.00033421,7]
[327693222,1716323438902,-500.0,0.00033421,7]
[327693224,1716323438911,-500.0,0.00033421,7]
[327693226,1716323438921,-500.0,0.00033421,7]
[327693228,1716323438931,-500.0,0.00033421,7]
[327693230,1716323438940,-500.0,0.00033421,7]
[327693232,1716323438950,-500.0,0.00033421,7]
[327693234,1716323438960,-500.0,0.00033421,7]
[327693236,1716323438969,-500.0,0.00033421,7]
[327693238,1716323438979,-5.09108228,0.00033421,7]
[327693304,1716323443236,-298.85,0.00033413,3]
[327693308,1716323443247,-494.90891772,0.00033421,7]
[327693311,1716323443256,-500.0,0.00033421,7]
[327693314,1716323443266,-500.0,0.00033421,7]
[327693317,1716323443275,-328.94152317,0.00033421,7]
[327693320,1716323443284,-500.0,0.00033421,7]
[327693322,1716323443294,-500.0,0.00033421,7]
[327693324,1716323443303,-500.0,0.00033421,7]
[327693326,1716323443312,-500.0,0.00033421,7]
[327693327,1716323443323,-500.0,0.00033421,7]
[327693328,1716323443332,-500.0,0.00033421,7]
[327693329,1716323443342,-500.0,0.00033421,7]
[327693330,1716323443352,-500.0,0.00033421,7]
[327693331,1716323443361,-500.0,0.00033421,7]
[327693333,1716323443371,-500.0,0.00033421,7]
[327693335,1716323443380,-500.0,0.00033421,7]
[327693338,1716323443389,-500.0,0.00033421,7]
[327693340,1716323443401,-500.0,0.00033421,7]
[327693342,1716323443411,-11821.34217832,0.00033422,7]
[327693344,1716323443420,-156.4696768,0.00033422,4]
[327693346,1716323443430,-372.21416803,0.00033422,4]
[327693348,1716323443440,-155.46422223,0.00033422,4]
[327693349,1716323443450,-155.45522097,0.00033422,4]
[327693350,1716323443461,-497.70281112,0.00033422,4]
[327693351,1716323443470,-189.57673399,0.00033422,4]
[327693352,1716323443479,-155.00310006,0.00033422,4]
[327693354,1716323443488,-341.03127753,0.00033422,4]
[327693356,1716323443498,-305.05293373,0.00033422,4]
[327693357,1716323443507,-221.53735836,0.00033422,4]
[327693358,1716323443517,-37511.39302714,0.00033422,4]
[327693359,1716323443527,-211.8645559,0.00033422,4]
[327693360,1716323443536,-10454.14770375,0.00033422,4]
[327693361,1716323443545,-310.23803148,0.00033422,4]
[327693362,1716323443554,-151.0,0.00033422,2]
[327693363,1716323443564,-151.0,0.00033422,2]
[327693364,1716323443575,-316.32323638,0.00033422,4]
[327693365,1716323443584,-151.0,0.00033422,2]
[327693366,1716323443594,-1430.21676795,0.00033422,4]
[327693367,1716323443604,-151.0,0.00033422,2]
[327693368,1716323443613,-151.0,0.00033422,2]
[327693369,1716323443623,-151.0,0.00033422,2]
[327693371,1716323443632,-151.0,0.00033422,2]
[327693383,1716323443742,-151.0,0.00033422,2]
[327693386,1716323443757,-201.18676036,0.00033423,2]
[327693388,1716323443766,-207.784917,0.00033423,2]
[327693390,1716323443775,-151.0,0.00033423,2]
[327693391,1716323443784,-151.0,0.00033423,2]
[327693393,1716323443793,-151.0,0.00033423,2]
[327693395,1716323443802,-151.0,0.00033423,2]
[327693397,1716323443811,-151.0,0.00033423,2]
[327693399,1716323443820,-151.339513,0.00033423,2]
[327693401,1716323443829,-151.0,0.00033423,2]
[327693403,1716323443838,-151.0,0.00033423,2]
[327693405,1716323443847,-151.0,0.00033423,2]
[327693407,1716323443856,-151.0,0.00033423,2]
[327693409,1716323443866,-159.343491,0.00033423,2]
[327693411,1716323443875,-151.0,0.00033423,2]
[327693413,1716323443884,-151.0,0.00033423,2]
[327693415,1716323443894,-151.0,0.00033423,2]
[327693417,1716323443903,-151.0,0.00033423,2]
[327693419,1716323443912,-151.0,0.00033423,2]
[327693421,1716323443921,-151.0,0.00033423,2]
[327693423,1716323443931,-151.0,0.00033423,2]
[327693425,1716323443940,-151.0,0.00033423,2]
[327693427,1716323443950,-151.0,0.00033423,2]
[327693429,1716323443959,-151.0,0.00033423,2]
[327693431,1716323443968,-151.0,0.00033423,2]
[327693433,1716323443977,-151.0,0.00033423,2]
[327693435,1716323443986,-151.0,0.00033423,2]
[327693437,1716323443995,-151.0,0.00033423,2]
[327693439,1716323444005,-151.0,0.00033423,2]
[327693440,1716323444014,-151.0,0.00033423,2]
[327693442,1716323444023,-151.0,0.00033423,2]
[327693444,1716323444032,-151.0,0.00033423,2]
[327693446,1716323444040,-151.0,0.00033423,2]
[327693447,1716323444050,-2034.5,0.00033423,6]
[327693448,1716323444059,-2034.5,0.00033423,6]
[327693449,1716323444067,-2034.5,0.00033423,6]
[327693450,1716323444077,-2034.5,0.00033423,6]
[327693451,1716323444086,-2034.5,0.00033423,6]
[327693452,1716323444095,-2034.5,0.00033423,6]
[327693453,1716323444105,-151.0,0.00033423,2]
[327693454,1716323444115,-151.0,0.00033423,2]
[327693455,1716323444128,-277.54926,0.00033423,2]
[327693456,1716323444137,-151.0,0.00033423,2]
[327693457,1716323444146,-151.0,0.00033423,2]
[327693458,1716323444155,-151.0,0.00033423,2]
[327693459,1716323444166,-151.0,0.00033423,2]
[327693460,1716323444175,-500.0,0.00033424,6]
[327693461,1716323444183,-163.86643535,0.00033424,6]
[327693872,1716323448343,-155.0,0.00033422,4]
[327693874,1716323448352,-336.13356465,0.00033424,6]
[327693876,1716323448362,-500.0,0.00033424,6]
[327693878,1716323448371,-500.0,0.00033424,6]
[327693880,1716323448380,-859.86,0.00033424,6]
[327693882,1716323448390,-500.0,0.00033424,6]
[327693884,1716323448399,-500.0,0.00033424,6]
[327693886,1716323448408,-502.38726771,0.00033424,6]
[327693888,1716323448417,-500.0,0.00033424,6]
[327693890,1716323448427,-500.0,0.00033424,6]
[327693892,1716323448436,-500.0,0.00033424,6]
[327693894,1716323448446,-701.87,0.00033424,6]
[327693896,1716323448455,-500.0,0.00033424,6]
[327693898,1716323448465,-500.0,0.00033424,6]
[327693900,1716323448474,-500.0,0.00033424,6]
[327693902,1716323448483,-500.0,0.00033424,6]
[327693904,1716323448492,-500.37152325,0.00033424,6]
[327693906,1716323448502,-412.34144997,0.00033424,6]
[327693908,1716323448512,-500.0,0.00033424,6]
[327693910,1716323448521,-1143.91,0.00033424,6]
[327693912,1716323448530,-500.0,0.00033424,6]
[327693914,1716323448539,-500.0,0.00033424,6]
[327693916,1716323448548,-500.0,0.00033424,6]
[327693918,1716323448557,-500.0,0.00033424,6]
[327693920,1716323448567,-500.0,0.00033424,2]
[327693922,1716323448578,-500.0,0.00033424,6]